fUSD/lending_fUSD_20240620
["ID","MTS","AMOUNT","RATE_DAILY","PERIOD"]
[329951307,1718860242982,-525.68019861,0.00013698,2]
[329951308,1718860242992,-500.0,0.00013698,2]
[329951309,1718860243001,-500.0,0.00013698,2]
[329951310,1718860243012,-1345.62,0.00013698,2]
[329951311,1718860243021,-474.29948682,0.00013698,2]
[329951312,1718860243030,-927.96,0.00013698,2]
[329951313,1718860243040,-495.66435757,0.00013698,2]
[329951314,1718860243053,-300.14564243,0.00013698,2]
[329951315,1718860243062,-500.0,0.00013698,2]
[329951316,1718860243072,-506.20883023,0.00013698,2]
[329951317,1718860243081,-516.47643165,0.00013698,2]
[329951318,1718860243090,-1050.88361786,0.00013698,2]
[329951325,1718860243934,-44.59638214,0.00013698,2]
[329951326,1718860243944,-500.0,0.00013698,2]
[329951327,1718860243953,-1633.48839139,0.00013698,2]
[329951328,1718860244025,-3167.198499,0.00013698,2]
[329951329,1718860244036,-1803.24107835,0.00013698,2]
[329951330,1718860244071,-845.50957208,0.00013698,2]
[329951331,1718860244082,-1493.92083092,0.00013698,2]
[329951332,1718860244094,-4859.22515269,0.00013698,2]
[329951333,1718860244105,-1041.04999969,0.00013698,2]
[329951334,1718860244117,-2593.81029174,0.00013698,2]
[329951335,1718860244126,-707.8,0.00013698,2]
[329951336,1718860244135,-500.0,0.00013698,2]
[329951337,1718860244146,-746.29,0.00013698,2]
[329951338,1718860244155,-500.0,0.00013698,2]
[329951339,1718860244165,-505.04,0.00013698,2]
[329951340,1718860244174,-824.37,0.00013698,2]
[329951341,1718860244183,-500.0,0.00013698,2]
[329951342,1718860244193,-151.0,0.00013698,2]
[329951343,1718860244202,-151.0,0.00013698,2]
[329951344,1718860244212,-500.0,0.00013698,2]
[329951345,1718860244221,-502.01,0.00013698,2]
[329951346,1718860244231,-500.0,0.00013698,2]
[329951347,1718860244242,-544.25,0.00013698,2]
[329951348,1718860244251,-500.0,0.00013698,2]
[329951349,1718860244264,-151.0,0.00013698,2]
[329951350,1718860244273,-151.0,0.00013698,2]
[329951351,1718860244283,-500.0,0.00013698,2]
[329951352,1718860244292,-977.79,0.00013698,2]
[329951353,1718860244302,-1135.29,0.00013698,2]
[329951354,1718860244311,-503.51861196,0.00013698,2]
[329951355,1718860244320,-477.16430631,0.00013698,2]
[329951357,1718860244460,-22.83569369,0.00013698,2]
[329951358,1718860244471,-500.0,0.00013698,2]
[329951359,1718860244480,-500.0,0.00013698,2]
[329951360,1718860244490,-310.77072985,0.00013698,2]
[329951361,1718860244505,-459.06927015,0.00013698,2]
[329951362,1718860244514,-727.57953074,0.00013698,2]
[329951363,1718860244525,-98.75046926,0.00013698,2]
[329951364,1718860244535,-243.54953074,0.00013698,2]
[329951365,1718860244551,-256.45046926,0.00013698,2]
[329951366,1718860244561,-615.72,0.00013698,2]
[329951367,1718860244572,-500.0,0.00013698,2]
[329951368,1718860244583,-500.0,0.00013698,2]
[329951369,1718860244593,-500.0,0.00013698,2]
[329951370,1718860244602,-483.99962988,0.00013698,2]
[329951371,1718860244614,-16.00037012,0.00013698,2]
[329951372,1718860244624,-500.0,0.00013698,2]
[329951373,1718860244634,-500.0,0.00013698,2]
[329951374,1718860244645,-500.0,0.00013698,2]
[329951375,1718860244654,-500.0,0.00013698,2]
[329951376,1718860244664,-508.94,0.00013698,2]
[329951377,1718860244674,-852.08,0.00013698,2]
[329951378,1718860244684,-500.0,0.00013698,2]
[329951379,1718860244694,-525.66709108,0.00013698,2]
[329951380,1718860244704,-605.2,0.00013698,2]
[329951381,1718860244715,-500.0,0.00013698,2]
[329951382,1718860244725,-500.0,0.00013698,2]
[329951383,1718860244735,-500.0,0.00013698,2]
[329951384,1718860244744,-500.0,0.00013698,2]
[329951385,1718860244754,-500.0,0.00013698,2]
[329951386,1718860244763,-500.0,0.00013698,2]
[329951387,1718860244773,-500.0,0.00013698,2]
[329951388,1718860244783,-590.48,0.00013698,2]
[329951389,1718860244793,-500.0,0.00013698,2]
[329951390,1718860244802,-500.0,0.00013698,2]
[329951391,1718860244812,-500.0,0.00013698,2]
[329951392,1718860244824,-608.08,0.00013698,2]
[329951393,1718860244834,-688.13,0.00013698,2]
[329951394,1718860244844,-500.0,0.00013698,2]
[329951395,1718860244856,-500.0,0.00013698,2]
[329951396,1718860244865,-715.15,0.00013698,2]
[329951397,1718860244875,-500.0,0.00013698,2]
[329951398,1718860244886,-878.8,0.00013698,2]
[329951399,1718860244896,-562.68,0.00013698,2]
[329951400,1718860244907,-151.0,0.00013698,2]
[329951401,1718860244916,-151.0,0.00013698,2]
[329951402,1718860244927,-500.0,0.00013698,2]
[329951403,1718860244938,-500.0,0.00013698,2]
[329951404,1718860244948,-500.0,0.00013698,2]
[329951405,1718860244959,-151.0,0.00013698,2]
[329951406,1718860244970,-657.18,0.00013698,2]
[329951407,1718860244980,-151.0,0.00013698,2]
[329951408,1718860244991,-151.0,0.00013698,2]
[329951409,1718860245001,-151.0,0.00013698,2]
[329951410,1718860245011,-635.77,0.00013698,2]
[329951411,1718860245020,-864.52,0.00013698,2]
[329951412,1718860245030,-541.05,0.00013698,2]
[329951413,1718860245039,-500.0,0.00013698,2]
[329951414,1718860245049,-151.0,0.00013698,2]
[329951415,1718860245059,-151.0,0.00013698,2]
[329951416,1718860245068,-151.0,0.00013698,2]
[329951417,1718860245078,-500.0,0.00013698,2]
[329951418,1718860245087,-151.0,0.00013698,2]
[329951419,1718860245099,-500.0,0.00013698,2]
[329951420,1718860245109,-500.0,0.00013698,2]
[329951421,1718860245119,-693.7,0.00013698,2]
[329951422,1718860245128,-728.11,0.00013698,2]
[329951423,1718860245139,-1476.03,0.00013698,2]
[329951424,1718860245148,-500.0,0.00013698,2]
[329951425,1718860245158,-500.0,0.00013698,2]
[329951426,1718860245167,-500.0,0.00013698,2]
[329951427,1718860245177,-500.0,0.00013698,2]
[329951428,1718860245187,-500.0,0.00013698,2]
[329951429,1718860245196,-500.0,0.00013698,2]
[329951430,1718860245206,-500.0,0.00013698,2]
[329951431,1718860245216,-593.24,0.00013698,2]
[329951432,1718860245226,-500.0,0.00013698,2]
[329951433,1718860245235,-895.53,0.00013698,2]
[329951434,1718860245245,-151.0,0.00013698,2]
[329951435,1718860245256,-151.0,0.00013698,2]
[329951436,1718860245266,-500.0,0.00013698,2]
[329951437,1718860245275,-535.94,0.00013698,2]
[329951438,1718860245284,-500.0,0.00013698,2]
[329951439,1718860245294,-1778.44,0.00013698,2]
[329951440,1718860245303,-497.53898589,0.00013698,2]
[329951441,1718860245312,-500.0,0.00013698,2]
[329951442,1718860245321,-583.98,0.00013698,2]
[329951443,1718860245332,-500.0,0.00013698,2]
[329951444,1718860245341,-500.0,0.00013698,2]
[329951445,1718860245350,-712.71,0.00013698,2]
[329951446,1718860245362,-151.0,0.00013698,2]
[329951447,1718860245689,-659.72,0.00013698,2]
[329951448,1718860245698,-151.0,0.00013698,2]
[329951449,1718860245708,-537.44,0.00013698,2]
[329951450,1718860245717,-500.0,0.00013698,2]
[329951451,1718860245727,-151.0,0.00013698,2]
[329951452,1718860245736,-151.0,0.00013698,2]
[329951453,1718860245746,-156.150576,0.00013698,2]
[329951454,1718860245758,-500.0,0.00013698,2]
[329951455,1718860245766,-651.24,0.00013698,2]
[329951456,1718860245775,-151.0,0.00013698,2]
[329951457,1718860245784,-154.634939,0.00013698,2]
[329951458,1718860245794,-500.0,0.00013698,2]
[329951459,1718860245803,-533.21,0.00013698,2]
[329951460,1718860245812,-1077.54,0.00013698,2]
[329951461,1718860245821,-500.0,0.00013698,2]
[329951462,1718860245831,-500.0,0.00013698,2]
[329951463,1718860245840,-932.61,0.00013698,2]
[329951464,1718860245849,-556.04,0.00013698,2]
[329951465,1718860245858,-289.22639257,0.00013698,2]
[329951466,1718860245867,-500.0,0.00013698,2]
[329951467,1718860245877,-500.0,0.00013698,2]
[329951468,1718860245886,-500.0,0.00013698,2]
[329951469,1718860245896,-500.0,0.00013698,2]
[329951470,1718860245906,-500.0,0.00013698,2]
[329951471,1718860245916,-231.58327851,0.00013698,2]
[329951472,1718860245926,-500.0,0.00013698,2]
[329951473,1718860245935,-736.83,0.00013698,2]
[329951474,1718860245945,-970.69,0.00013698,2]
[329951475,1718860245955,-1168.22,0.00013698,2]
[329951476,1718860245964,-500.0,0.00013698,2]
[329951477,1718860245974,-500.0,0.00013698,2]
[329951478,1718860245983,-500.0,0.00013698,2]
[329951479,1718860245994,-500.0,0.00013698,2]
[329951480,1718860246005,-500.0,0.00013698,2]
[329951481,1718860246014,-500.0,0.00013698,2]
[329951482,1718860246023,-151.0,0.00013698,2]
[329951483,1718860246032,-151.0,0.00013698,2]
[329951484,1718860246042,-500.0,0.00013698,2]
[329951485,1718860246052,-151.0,0.00013698,2]
[329951486,1718860246063,-151.0,0.00013698,2]
[329951487,1718860246072,-500.0,0.00013698,2]
[329951488,1718860246082,-606.88,0.00013698,2]
[329951489,1718860246092,-500.0,0.00013698,2]
[329951490,1718860246103,-500.0,0.00013698,2]
[329951491,1718860246114,-514.19,0.00013698,2]
[329951492,1718860246124,-500.0,0.00013698,2]
[329951493,1718860246137,-500.0,0.00013698,2]
[329951494,1718860246147,-151.0,0.00013698,2]
[329951495,1718860246157,-604.35577533,0.00013698,2]
[329951496,1718860246168,-151.0,0.00013698,2]
[329951497,1718860246179,-500.0,0.00013698,2]
[329951498,1718860246189,-500.0,0.00013698,2]
[329951499,1718860246199,-268.03864067,0.00013698,2]
[329951500,1718860246211,-628.43,0.00013698,2]
[329951501,1718860246220,-949.48,0.00013698,2]
[329951502,1718860246230,-500.0,0.00013698,2]
[329951503,1718860246240,-500.0,0.00013698,2]
[329951504,1718860246250,-500.0,0.00013698,2]
[329951505,1718860246262,-500.0,0.00013698,2]
[329951506,1718860246271,-778.49,0.00013698,2]
[329951507,1718860246279,-500.0,0.00013698,2]
[329951508,1718860246288,-769.04,0.00013698,2]
[329951509,1718860246298,-500.0,0.00013698,2]
[329951510,1718860246308,-500.0,0.00013698,2]
[329951511,1718860246317,-500.0,0.00013698,2]
[329951512,1718860246327,-650.67,0.00013698,2]
[329951513,1718860246336,-315.03,0.00013698,2]
[329951514,1718860246346,-575.28,0.00013698,2]
[329951515,1718860246355,-500.0,0.00013698,2]
[329951516,1718860246365,-500.0,0.00013698,2]
[329951517,1718860246374,-982.41,0.00013698,2]
[329951518,1718860246384,-500.0,0.00013698,2]
[329951519,1718860246393,-965.84,0.00013698,2]
[329951520,1718860246403,-638.0,0.00013698,2]
[329951521,1718860246413,-837.53,0.00013698,2]
[329951522,1718860246423,-500.0,0.00013698,2]
[329951523,1718860246432,-500.0,0.00013698,2]
[329951524,1718860246441,-663.14,0.00013698,2]
[329951525,1718860246452,-500.0,0.00013698,2]
[329951526,1718860246463,-500.0,0.00013698,2]
[329951527,1718860246472,-500.0,0.00013698,2]
[329951528,1718860246481,-500.0,0.00013698,2]
[329951529,1718860246489,-585.84,0.00013698,2]
[329951530,1718860246500,-500.0,0.00013698,2]
[329951531,1718860246511,-592.74,0.00013698,2]
[329951532,1718860246520,-500.0,0.00013698,2]
[329951533,1718860246529,-500.0,0.00013698,2]
[329951534,1718860246541,-292.33796797,0.00013698,2]
[329951535,1718860246551,-500.0,0.00013698,2]
[329951536,1718860246560,-500.0,0.00013698,2]
[329951537,1718860246570,-500.0,0.00013698,2]
[329951538,1718860246579,-949.34,0.00013698,2]
[329951539,1718860246590,-683.84,0.00013698,2]
[329951540,1718860246599,-500.0,0.00013698,2]
[329951541,1718860246610,-762.26,0.00013698,2]
[329951542,1718860246620,-500.0,0.00013698,2]
[329951543,1718860246630,-500.0,0.00013698,2]
[329951544,1718860246640,-500.0,0.00013698,2]
[329951545,1718860246650,-500.0,0.00013698,2]
[329951546,1718860246660,-500.0,0.00013698,2]
[329951547,1718860246669,-500.0,0.00013698,2]
[329951548,1718860246679,-500.0,0.00013698,2]
[329951549,1718860246689,-187.79441714,0.00013698,2]
[329951550,1718860246698,-728.74,0.00013698,2]
[329951551,1718860246709,-518.22,0.00013698,2]
[329951552,1718860246719,-500.0,0.00013698,2]
[329951553,1718860246729,-500.0,0.00013698,2]
[329951554,1718860246739,-648.78,0.00013698,2]
[329951555,1718860246748,-500.0,0.00013698,2]
[329951556,1718860246760,-151.0,0.00013698,2]
[329951557,1718860246769,-513.91054701,0.00013698,2]
[329951558,1718860246782,-151.0,0.00013698,2]
[329951559,1718860246792,-500.0,0.00013698,2]
[329951560,1718860246801,-960.53,0.00013698,2]
[329951561,1718860246810,-756.91,0.00013698,2]
[329951562,1718860246820,-500.0,0.00013698,2]
[329951563,1718860246830,-500.0,0.00013698,2]
[329951564,1718860246839,-950.9,0.00013698,2]
[329951565,1718860246848,-500.0,0.00013698,2]
[329951566,1718860246858,-928.88,0.00013698,2]
[329951567,1718860246867,-500.0,0.00013698,2]
[329951568,1718860246877,-500.0,0.00013698,2]
[329951569,1718860246887,-1176.38,0.00013698,2]
[329951570,1718860246896,-500.0,0.00013698,2]
[329951571,1718860246905,-151.0,0.00013698,2]
[329951572,1718860246914,-151.0,0.00013698,2]
[329951573,1718860246924,-613.89,0.00013698,2]
[329951574,1718860246933,-733.12,0.00013698,2]
[329951575,1718860246943,-500.0,0.00013698,2]
[329951576,1718860246952,-521.01,0.00013698,2]
[329951577,1718860246961,-1121.21,0.00013698,2]
[329951578,1718860246971,-500.0,0.00013698,2]
[329951579,1718860246980,-151.0,0.00013698,2]
[329951580,1718860246990,-156.677496,0.00013698,2]
[329951581,1718860247000,-2188.99,0.00013698,2]
[329951582,1718860247011,-151.0,0.00013698,2]
[329951583,1718860247021,-151.0,0.00013698,2]
[329951584,1718860247030,-1004.83,0.00013698,2]
[329951585,1718860247041,-500.0,0.00013698,2]
[329951586,1718860247050,-500.0,0.00013698,2]
[329951587,1718860247060,-500.0,0.00013698,2]
[329951588,1718860247070,-500.0,0.00013698,2]
[329951589,1718860247080,-151.0,0.00013698,2]
[329951590,1718860247089,-224.861316,0.00013698,2]
[329951591,1718860247098,-500.0,0.00013698,2]
[329951592,1718860247107,-500.0,0.00013698,2]
[329951593,1718860247116,-500.0,0.00013698,2]
[329951594,1718860247126,-622.82,0.00013698,2]
[329951595,1718860247135,-1457.07,0.00013698,2]
[329951596,1718860247145,-647.34,0.00013698,2]
[329951597,1718860247155,-500.0,0.00013698,2]
[329951598,1718860247164,-151.0,0.00013698,2]
[329951599,1718860247174,-1995.46,0.00013698,2]
[329951600,1718860247184,-500.0,0.00013698,2]
[329951601,1718860247193,-151.0,0.00013698,2]
[329951602,1718860247203,-639.48,0.00013698,2]
[329951603,1718860247213,-500.0,0.00013698,2]
[329951604,1718860247222,-500.0,0.00013698,2]
[329951605,1718860247232,-500.0,0.00013698,2]
[329951606,1718860247242,-500.0,0.00013698,2]
[329951607,1718860247251,-750.53,0.00013698,2]
[329951608,1718860247263,-500.0,0.00013698,2]
[329951609,1718860247272,-500.0,0.00013698,2]
[329951610,1718860247282,-500.0,0.00013698,2]
[329951611,1718860247292,-656.24,0.00013698,2]
[329951612,1718860247302,-500.0,0.00013698,2]
[329951613,1718860247311,-947.66,0.00013698,2]
[329951614,1718860247322,-561.89,0.00013698,2]
[329951615,1718860247332,-500.0,0.00013698,2]
[329951616,1718860247342,-535.33,0.00013698,2]
[329951617,1718860247351,-500.0,0.00013698,2]
[329951618,1718860247361,-500.0,0.00013698,2]
[329951619,1718860247370,-1984.41,0.00013698,2]
[329951620,1718860247379,-151.0,0.00013698,2]
[329951621,1718860247389,-151.0,0.00013698,2]
[329951622,1718860247399,-500.0,0.00013698,2]
[329951623,1718860247408,-745.19,0.00013698,2]
[329951624,1718860247418,-1053.02,0.00013698,2]
[329951625,1718860247427,-500.0,0.00013698,2]
[329951626,1718860247437,-34446.39,0.00013698,2]
[329951627,1718860247447,-500.0,0.00013698,2]
[329951628,1718860247458,-1113.6,0.00013698,2]
[329951629,1718860247471,-13777.97,0.00013698,2]
[329951630,1718860247480,-500.0,0.00013698,2]
[329951631,1718860247491,-500.0,0.00013698,2]
[329951632,1718860247503,-591.44,0.00013698,2]
[329951633,1718860247513,-500.0,0.00013698,2]
[329951634,1718860247522,-500.0,0.00013698,2]
[329951635,1718860247532,-500.0,0.00013698,2]
[329951636,1718860247543,-500.0,0.00013698,2]
[329951637,1718860247553,-906.53,0.00013698,2]
[329951638,1718860247563,-2225.43,0.00013698,2]
[329951639,1718860247572,-500.0,0.00013698,2]
[329951640,1718860247582,-1724.43,0.00013698,2]
[329951641,1718860247592,-500.0,0.00013698,2]
[329951642,1718860247602,-500.0,0.00013698,2]
[329951643,1718860247611,-500.0,0.00013698,2]
[329951644,1718860247621,-500.0,0.00013698,2]
[329951645,1718860247631,-500.0,0.00013698,2]
[329951646,1718860247641,-500.0,0.00013698,2]
[329951647,1718860247651,-1078.33,0.00013698,2]
[329951648,1718860247662,-627.7,0.00013698,2]
[329951649,1718860247672,-917.0,0.00013698,2]
[329951650,1718860247682,-2229.03,0.00013698,2]
[329951651,1718860247692,-761.96,0.00013698,2]
[329951652,1718860247701,-151.0,0.00013698,2]
[329951653,1718860247711,-500.0,0.00013698,2]
[329951654,1718860247720,-151.0,0.00013698,2]
[329951655,1718860247730,-34145.46,0.00013698,2]
[329951656,1718860247739,-500.0,0.00013698,2]
[329951657,1718860247749,-500.0,0.00013698,2]
[329951658,1718860247759,-3157.42,0.00013698,2]
[329951659,1718860247769,-151.0,0.00013698,2]
[329951660,1718860247780,-151.0,0.00013698,2]
[329951661,1718860247789,-500.0,0.00013698,2]
[329951662,1718860247799,-500.0,0.00013698,2]
[329951663,1718860247809,-500.0,0.00013698,2]
[329951664,1718860247818,-500.0,0.00013698,2]
[329951665,1718860247828,-500.0,0.00013698,2]
[329951666,1718860247837,-500.0,0.00013698,2]
[329951667,1718860247847,-500.0,0.00013698,2]
[329951668,1718860247857,-151.0,0.00013698,2]
[329951669,1718860247867,-2190.17,0.00013698,2]
[329951670,1718860247877,-500.0,0.00013698,2]
[329951671,1718860247886,-897.83,0.00013698,2]
[329951672,1718860247896,-500.0,0.00013698,2]
[329951673,1718860247905,-500.0,0.00013698,2]
[329951674,1718860247916,-500.0,0.00013698,2]
[329951675,1718860247926,-500.0,0.00013698,2]
[329951676,1718860247938,-500.0,0.00013698,2]
[329951677,1718860247948,-603.12,0.00013698,2]
[329951678,1718860247958,-500.0,0.00013698,2]
[329951679,1718860247968,-1951.07,0.00013698,2]
[329951680,1718860247978,-944.17,0.00013698,2]
[329951681,1718860247988,-10774.54,0.00013698,2]
[329951682,1718860247997,-3394.32,0.00013698,2]
[329951683,1718860248008,-1740.12,0.00013698,2]
[329951684,1718860248017,-1360.64,0.00013698,2]
[329951685,1718860248026,-151.0,0.00013698,2]
[329951686,1718860248036,-151.0,0.00013698,2]
[329951687,1718860248047,-500.0,0.00013698,2]
[329951688,1718860248057,-500.0,0.00013698,2]
[329951689,1718860248068,-1901.94,0.00013698,2]
[329951690,1718860248078,-770.37,0.00013698,2]
[329951691,1718860248088,-2500.82,0.00013698,2]
[329951692,1718860248099,-500.0,0.00013698,2]
[329951693,1718860248109,-500.0,0.00013698,2]
[329951694,1718860248119,-151.0,0.00013698,2]
[329951695,1718860248128,-500.0,0.00013698,2]
[329951696,1718860248139,-151.0,0.00013698,2]
[329951697,1718860248150,-500.0,0.00013698,2]
[329951698,1718860248159,-204.81304569,0.00013698,2]
[329951699,1718860248169,-747.98,0.00013698,2]
[329951700,1718860248178,-731.64,0.00013698,2]
[329951701,1718860248190,-500.0,0.00013698,2]
[329951702,1718860248199,-500.0,0.00013698,2]
[329951703,1718860248209,-571.49,0.00013698,2]
[329951704,1718860248219,-1815.58,0.00013698,2]
[329951705,1718860248228,-500.0,0.00013698,2]
[329951706,1718860248239,-500.0,0.00013698,2]
[329951707,1718860248248,-15044.22836428,0.00013698,2]
[329951708,1718860248733,-1793.37163572,0.00013698,2]
[329951709,1718860248742,-500.0,0.00013698,2]
[329951710,1718860248752,-500.0,0.00013698,2]
[329951711,1718860248761,-151.0,0.00013698,2]
[329951712,1718860248771,-151.0,0.00013698,2]
[329951713,1718860248780,-3204.03109028,0.00013698,2]
[329951714,1718860248813,-1304.29668475,0.00013698,2]
[329951715,1718860248825,-3792.97760677,0.00013698,2]
[329951716,1718860248836,-378.42145,0.00013698,2]
[329951717,1718860248847,-453.999994,0.00013698,2]
[329951718,1718860248858,-812.31370672,0.00013698,2]
[329951719,1718860248869,-1900.24289999,0.00013698,2]
[329951720,1718860249735,-569.64,0.00013698,2]
[329951721,1718860249768,-810.78656749,0.00013698,2]
[329951722,1718860249778,-542.91,0.00013698,2]
[329951723,1718860249788,-627.81,0.00013698,2]
[329951724,1718860249797,-1493.43,0.00013698,2]
[329951725,1718860249807,-500.0,0.00013698,2]
[329951726,1718860249818,-500.0,0.00013698,2]
[329951727,1718860249829,-500.0,0.00013698,2]
[329951728,1718860249839,-4198.26,0.00013698,2]
[329951729,1718860249850,-500.0,0.00013698,2]
[329951730,1718860249859,-513.82404766,0.00013698,2]
[329951731,1718860249869,-620.63,0.00013698,2]
[329951732,1718860249878,-500.0,0.00013698,2]
[329951733,1718860249888,-943.4,0.00013698,2]
[329951734,1718860249898,-1323.42,0.00013698,2]
[329951735,1718860249907,-1204.8,0.00013698,2]
[329951736,1718860249917,-500.0,0.00013698,2]
[329951737,1718860249927,-601.27,0.00013698,2]
[329951738,1718860249936,-500.0,0.00013698,2]
[329951739,1718860249946,-2121.39,0.00013698,2]
[329951740,1718860249955,-500.0,0.00013698,2]
[329951741,1718860249965,-2613.92367417,0.00013698,2]
[329951742,1718860249977,-2304.36632583,0.00013698,2]
[329951743,1718860249987,-500.0,0.00013698,2]
[329951744,1718860249996,-500.0,0.00013698,2]
[329951745,1718860250007,-723.89,0.00013698,2]
[329951746,1718860250016,-924.23132315,0.00013698,2]
[329951747,1718860250028,-245.72867685,0.00013698,2]
[329951748,1718860250037,-500.0,0.00013698,2]
[329951749,1718860250047,-1187.64,0.00013698,2]
[329951750,1718860250056,-500.0,0.00013698,2]
[329951751,1718860250066,-1375.62,0.00013698,2]
[329951752,1718860250075,-580.52,0.00013698,2]
[329951753,1718860250085,-500.0,0.00013698,2]
[329951754,1718860250094,-500.0,0.00013698,2]
[329951755,1718860250103,-500.0,0.00013698,2]
[329951756,1718860250113,-500.0,0.00013698,2]
[329951757,1718860250122,-500.0,0.00013698,2]
[329951758,1718860250131,-2413.69526724,0.00013698,2]
[329951759,1718860250143,-686.14473276,0.00013698,2]
[329951760,1718860250152,-1751.33233329,0.00013698,2]
[329951761,1718860250163,-317.47766671,0.00013698,2]
[329951762,1718860250173,-5714.68,0.00013698,2]
[329951763,1718860250182,-500.0,0.00013698,2]
[329951764,1718860250191,-500.0,0.00013698,2]
[329951765,1718860250202,-2856.58,0.00013698,2]
[329951766,1718860250212,-500.0,0.00013698,2]
[329951767,1718860250221,-500.0,0.00013698,2]
[329951768,1718860250231,-648.98,0.00013698,2]
[329951769,1718860250241,-1820.76,0.00013698,2]
[329951770,1718860250251,-766.92,0.00013698,2]
[329951771,1718860250261,-151.0,0.00013698,2]
[329951772,1718860250271,-174.386753,0.00013698,2]
[329951773,1718860250280,-151.0,0.00013698,2]
[329951774,1718860250290,-151.0,0.00013698,2]
[329951775,1718860250299,-564.06,0.00013698,2]
[329951776,1718860250308,-2532.28916666,0.00013698,2]
[329951777,1718860250320,-468.68885309,0.00013698,2]
[329951778,1718860250331,-155.85198025,0.00013698,2]
[329951779,1718860250340,-1454.97,0.00013698,2]
[329951780,1718860250350,-828.65,0.00013698,2]
[329951781,1718860250359,-3793.08,0.00013698,2]
[329951782,1718860250369,-2666.49,0.00013698,2]
[329951783,1718860250388,-500.0,0.00013698,2]
[329951784,1718860250399,-2287.2,0.00013698,2]
[329951785,1718860250409,-812.52,0.00013698,2]
[329951786,1718860250419,-493.06946084,0.00013698,2]
[329951787,1718860250428,-500.0,0.00013698,2]
[329951788,1718860250438,-2208.92467791,0.00013698,2]
[329951789,1718860250454,-325.95661418,0.00013698,2]
[329951790,1718860250474,-714.2364726,0.00013698,2]
[329951791,1718860250487,-1749.86223531,0.00013698,2]
[329951792,1718860250498,-879.06594218,0.00013698,2]
[329951793,1718860250513,-545.73405782,0.00013698,2]
[329951794,1718860250523,-639.61,0.00013698,2]
[329951795,1718860250532,-500.0,0.00013698,2]
[329951796,1718860250544,-1142.33,0.00013698,2]
[329951797,1718860250555,-500.0,0.00013698,2]
[329951798,1718860250564,-500.0,0.00013698,2]
[329951799,1718860250574,-500.0,0.00013698,2]
[329951800,1718860250584,-4211.39480059,0.00013698,2]
[329951801,1718860250598,-8922.83961422,0.00013698,2]
[329951802,1718860250609,-3721.56168088,0.00013698,2]
[329951803,1718860250670,-1913.36843688,0.00013598,2]
[329951804,1718860250682,-687.23661666,0.00013598,2]
[329951805,1718860250694,-254.86173603,0.00013598,2]
[329951818,1718860689813,138870.0,0.00025999,90]
[329951821,1718861211218,272.07,0.00026,90]
[329951822,1718861238593,150.0,0.00026,90]
[329951856,1718861365401,150.0,0.00026,90]
[329951863,1718861431658,-1833.35163994,0.00010816,2]
[329951864,1718861431771,-307.4895468,0.00010816,2]
[329951865,1718861431783,-215.18565663,0.00010817,2]
[329951866,1718861431795,-203.64434337,0.00010817,2]